bitfinex-derivatives/quotes_SOLF0:USTF0_20241002
["timestamp","ask_amount","ask_price","bid_price","bid_amount"]
[1727871063475,16.52,145.24,145.16,25.9844]
[1727871063769,22.02,145.24,145.16,25.9844]
[1727871063967,22.02,145.24,145.16,9.4644]
[1727871064165,16.52,145.22,145.16,9.4644]
[1727871064363,16.52,145.2,145.15,6.865]
[1727871065174,16.52,145.2,145.13,6.99002]
[1727871065666,5.44,145.21,145.13,6.99002]
[1727871065868,5.5,145.24,145.15,6.865]
[1727871066070,5.5,145.24,145.16,9.4956]
[1727871067271,5.5,145.24,145.16,26.0156]
[1727871067568,5.5,145.24,145.16,16.52]
[1727871067776,16.52,145.22,145.13,12.43002]
[1727871067975,16.52,145.22,145.13,28.95002]
[1727871068465,27.46,145.24,145.15,23.385]
[1727871068868,27.46,145.24,145.17,16.52]
[1727871068869,5.5,145.24,145.17,16.52]
[1727871069167,5.5,145.24,145.17,21.96]
[1727871069474,5.5,145.24,145.18,3.9109]
[1727871069770,5.5,145.24,145.19,3.52218714]
[1727871070077,5.5,145.24,145.18,3.9109]
[1727871070374,22.02,145.24,145.18,3.9109]
[1727871071274,5.6,145.23,145.15,23.385]
[1727871071468,16.52,145.22,145.15,6.865]
[1727871072970,5.5,145.24,145.15,23.385]
[1727871072971,27.62,145.24,145.15,23.385]
[1727871073173,22.02,145.24,145.15,23.385]
[1727871073373,5.5,145.24,145.15,23.385]
[1727871073869,5.5,145.24,145.17,16.52]
[1727871074173,5.5,145.24,145.18,9.4164]
[1727871074467,5.5,145.24,145.19,16.52]
[1727871074660,5.5,145.24,145.2,16.52]
[1727871075272,5.5,145.24,145.19,3.51461654]
[1727871075461,5.5,145.24,145.18,25.9364]
[1727871075666,5.5,145.24,145.19,5.6]
[1727871075976,5.5,145.24,145.18,9.4164]
[1727871076467,22.02,145.24,145.17,6.865]
[1727871077067,22.02,145.24,145.16,6.865]
[1727871077461,5.5,145.24,145.16,23.385]
[1727871077770,5.5,145.24,145.16,33.315]
[1727871078871,5.5,145.24,145.16,33.8808]
[1727871079470,5.5,145.24,145.19,26.45]
[1727871079671,5.5,145.24,145.2,13.06518283]
[1727871080376,5.5,145.24,145.2,9.6429]
[1727871081268,5.5,145.24,145.17,12.465]
[1727871083878,5.5,145.24,145.17,38.915]
[1727871084874,5.5,145.24,145.17,12.465]
[1727871085070,5.5,145.24,145.17,6.865]
[1727871085575,31.95,145.24,145.16,0.5658]
[1727871085777,1.296,145.23,145.16,0.5658]
[1727871085974,5.6,145.22,145.16,0.5658]
[1727871087979,3.4439,145.21,145.16,0.5658]
[1727871088179,1.296,145.23,145.16,0.5658]
[1727871088384,5.6,145.22,145.16,0.5658]
[1727871089083,32.05,145.22,145.16,0.5658]
[1727871089782,3.4446,145.18,145.16,0.5658]
[1727871090977,3.4447,145.17,145.16,0.5658]
[1727871091883,5.6,145.22,145.16,0.5658]
[1727871092779,5.6,145.21,145.16,0.5658]
[1727871093379,3.4447,145.17,145.16,0.5658]
[1727871093982,3.4446,145.18,145.16,0.5658]
[1727871094280,3.4446,145.18,145.13,0.12502]
[1727871094482,3.4446,145.18,145.15,3.445]
[1727871094672,3.444,145.2,145.13,0.12502]
[1727871095078,3.444,145.2,145.17,3.4445]
[1727871095477,3.4443,145.19,145.13,0.12502]
[1727871095782,5.6,145.21,145.16,3.4448]
[1727871095983,5.6,145.21,145.13,0.12502]
[1727871095984,11.1,145.21,145.13,0.12502]
[1727871096785,3.4444,145.19,145.17,3.4447]
[1727871096983,5.5,145.21,145.13,0.12502]
[1727871097189,8.9439,145.21,145.19,3.4442]
[1727871097684,5.5,145.21,145.13,0.12502]
[1727871097987,3.4441,145.2,145.18,3.4443]
[1727871098175,3.4441,145.2,145.13,0.12502]
[1727871098378,3.4443,145.19,145.17,3.4446]
[1727871098683,5.5,145.21,145.15,5.6]
[1727871099186,5.5,145.21,145.2,3.444]
[1727871099478,5.5,145.21,145.16,1.304]
[1727871099696,5.5,145.21,145.16,17.834]
[1727871100380,5.5,145.21,145.16,23.534]
[1727871100580,5.5,145.21,145.18,16.53]
[1727871100888,5.5,145.21,145.18,19.92474135]
[1727871101380,5.5,145.21,145.17,8.2673]
[1727871101889,5.5,145.21,145.15,16.53]
[1727871102382,11.2,145.21,145.15,16.53]
[1727871103184,5.5,145.21,145.15,16.53]
[1727871103383,11.2,145.21,145.15,16.53]
[1727871104475,11.2,145.21,145.13,8.27012]
[1727871104683,11.2,145.21,145.14,16.53]
[1727871106075,5.5,145.21,145.14,16.53]
[1727871107482,5.5,145.21,145.13,0.12502]
[1727871108079,16.53,145.2,145.13,0.12502]
[1727871112192,5.7,145.19,145.13,0.12502]
[1727871114797,16.53,145.18,145.13,0.12502]
[1727871115196,5.7,145.17,145.13,0.12502]
[1727871116289,16.53,145.18,145.13,0.12502]
[1727871116490,22.23,145.18,145.13,0.12502]
[1727871119194,16.53,145.17,145.13,0.12502]
[1727871119896,5.7,145.18,145.13,0.12502]
[1727871120896,16.53,145.19,145.13,0.12502]
[1727871121088,3.49225411,145.22,145.13,0.12502]
[1727871121089,16.53,145.21,145.13,0.12502]
[1727871121295,5.7,145.2,145.13,0.12502]
[1727871121794,16.53,145.21,145.13,0.12502]
[1727871121992,5.7,145.2,145.13,16.65502]
[1727871123000,16.53,145.19,145.13,0.12502]
[1727871123303,16.53,145.17,145.13,0.12502]
[1727871123489,5.7,145.16,145.13,0.12502]
[1727871123994,33.06,145.14,145.01,0.12502]
[1727871124298,16.53,145.08,145.01,0.12502]
[1727871124501,5.7,145.07,145.01,0.12502]
[1727871124896,0.12502,145.13,145.02,16.53]
[1727871125202,16.53,145.09,145.01,0.12502]
[1727871125499,5.7,145.08,145.01,0.12502]
[1727871125897,16.53,145.07,145.01,0.12502]
[1727871126298,16.53,145.06,145.01,0.12502]
[1727871126493,2.5797,145.07,145.01,0.12502]
[1727871126698,16.53,145.06,145.01,0.12502]
[1727871127004,16.53,145.1,145.01,0.12502]
[1727871127198,16.53,145.1,145.02,16.53]
[1727871127199,22.23,145.1,145.02,16.53]
[1727871127905,22.23,145.12,145.03,16.53]
[1727871128201,22.23,145.12,145.03,17.8904]
[1727871128797,22.23,145.12,145.03,1.3604]
[1727871128993,16.53,145.1,145.01,9.61152]
[1727871129298,16.53,145.1,145.01,6.99002]
[1727871129503,16.53,145.1,145.01,0.12502]
[1727871131192,17.7171,145.12,145.02,16.53]
[1727871131393,5.94,145.09,145.02,16.53]
[1727871131596,5.94,145.1,145.02,16.53]
[1727871131902,5.94,145.1,145.02,22.47]
[1727871134402,3.4467,145.09,145.02,22.47]
[1727871134607,5.94,145.1,145.02,22.47]
[1727871134905,3.447,145.08,145.04,3.4476]
[1727871135102,5.94,145.1,145.02,22.47]
[1727871135305,5.94,145.1,145.04,16.53]
[1727871136009,3.4466,145.09,145.06,3.4472]
[1727871136510,5.94,145.1,145.04,16.53]
[1727871136720,3.447,145.08,145.05,3.4474]
[1727871137599,3.447,145.08,145.04,16.53]
[1727871137807,5.94,145.1,145.04,16.53]
[1727871138110,16.53,145.12,145.04,16.53]
[1727871138111,5.94,145.11,145.04,16.53]
[1727871138304,3.4468,145.09,145.06,3.4472]
[1727871138501,5.94,145.11,145.04,16.53]
[1727871138702,5.94,145.11,145.03,2.6404]
[1727871139009,3.447,145.08,145.05,3.4474]
[1727871139208,5.94,145.11,145.03,2.6404]
[1727871139407,3.4466,145.1,145.07,3.447]
[1727871139714,0.12502,145.13,145.08,16.53]
[1727871140010,0.12502,145.13,145.11,3.4459]
[1727871140311,0.12502,145.13,145.08,19.8985903]
[1727871140508,0.12502,145.13,145.08,16.53]
[1727871140709,3.57082,145.13,145.1,3.4462]
[1727871140909,0.12502,145.13,145.08,16.53]
[1727871141111,0.12502,145.13,145.1,16.53]
[1727871141311,0.12502,145.13,145.12,3.4459]
[1727871141710,6.06502,145.19,145.13,3.4456]
[1727871142023,6.06502,145.19,145.14,16.53]
[1727871142512,6.06502,145.19,145.12,2.6076]
[1727871142917,3.4446,145.18,145.14,3.4454]
[1727871143111,6.06502,145.19,145.12,2.6076]
[1727871143708,0.12502,145.19,145.12,2.6076]
[1727871143909,3.4447,145.17,145.14,3.4453]
[1727871144310,3.445,145.16,145.13,3.4456]
[1727871144617,0.12502,145.19,145.12,2.6076]
[1727871144813,5.51,145.15,145.12,2.6076]
[1727871145011,8.9553,145.15,145.12,2.6076]
[1727871145514,5.51,145.15,145.13,3.4456]
[1727871146217,8.9553,145.15,145.12,3.4458]
[1727871146414,5.51,145.15,145.1,5.94]
[1727871146606,5.51,145.15,145.09,22.47]
[1727871147105,5.51,145.15,145.09,3.4466]
[1727871147106,3.4462,145.11,145.09,3.4466]
[1727871147908,3.446,145.12,145.09,3.4466]
[1727871148818,5.51,145.15,145.08,8.508]
[1727871149020,3.4457,145.13,145.1,3.4462]
[1727871149320,5.51,145.15,145.1,3.4462]
[1727871149616,3.4459,145.13,145.1,3.4462]
[1727871150619,3.4456,145.14,145.11,3.4459]
[1727871150915,5.51,145.15,145.11,16.53]
[1727871151421,5.51,145.15,145.14,3.4454]
[1727871154022,3.4107,145.15,145.14,19.9754]
[1727871154211,3.4107,145.15,145.14,23.35258921]
[1727871154416,1.3114,145.15,145.14,23.35258921]
[1727871154624,0.12502,145.19,145.18,3.4445]
[1727871154820,0.12502,145.19,145.18,19.9745]
[1727871155121,0.12502,145.25,145.22,3.4433]
[1727871155315,0.12502,145.25,145.21,16.53]
[1727871155817,0.12502,145.25,145.23,3.4431]
[1727871156020,0.12502,145.25,145.21,16.53]
[1727871156222,0.12502,145.25,145.23,3.443]
[1727871156521,0.12502,145.25,145.21,16.53]
[1727871157020,0.12502,145.25,145.22,3.44161178]
[1727871157321,0.12502,145.25,145.24,3.443]
[1727871158112,0.12502,145.25,145.24,9.383]
[1727871159516,0.12502,145.25,145.24,3.443]
[1727871160323,0.12502,145.25,145.22,5.78]
[1727871160518,0.12502,145.25,145.2,33.4892]
[1727871160822,3.56792,145.25,145.22,3.4434]
[1727871161029,0.12502,145.25,145.22,3.45359511]
[1727871161328,0.12502,145.25,145.24,3.443]
[1727871161521,0.12502,145.25,145.24,9.223]
[1727871161715,0.12502,145.31,145.24,32.21]
[1727871161919,0.12502,145.31,145.3,3.4416]
[1727871162222,0.12502,145.31,145.27,26.43]
[1727871162423,3.56662,145.31,145.28,3.442]
[1727871162626,0.12502,145.31,145.28,3.442]
[1727871163425,0.12502,145.31,145.27,3.4423]
[1727871163619,0.12502,145.31,145.25,26.43]
[1727871164019,3.4423,145.28,145.25,3.4427]
[1727871164924,3.4423,145.28,145.23,7.1603]
[1727871165120,3.4423,145.28,145.26,3.4425]
[1727871165922,3.4423,145.28,145.23,7.1603]
[1727871166113,3.4423,145.28,145.25,3.4427]
[1727871166313,3.4423,145.28,145.23,7.1603]
[1727871166314,0.12502,145.31,145.23,7.1603]
[1727871166531,8.9424,145.27,145.23,7.1603]
[1727871166723,5.5,145.27,145.26,3.4426]
[1727871168628,5.5,145.27,145.23,7.1603]
[1727871168931,5.5,145.27,145.24,3.4429]
[1727871169233,5.5,145.27,145.23,7.1603]
[1727871169419,3.4427,145.26,145.23,10.6034]
[1727871169626,5.5,145.27,145.23,4.8234]
[1727871169819,5.5,145.27,145.22,9.2234]
[1727871170029,5.5,145.27,145.2,27.7092]
[1727871170228,5.5,145.27,145.2,7.0592]
[1727871170425,3.4434,145.23,145.2,10.503]
[1727871171126,3.443,145.25,145.22,3.4435]
[1727871171332,5.5,145.27,145.2,33.4892]
[1727871171726,5.5,145.27,145.23,3.4431]
[1727871171928,5.5,145.27,145.22,3.4968724]
[1727871172129,5.5,145.27,145.2,33.4892]
[1727871172427,5.5,145.27,145.23,26.43]
[1727871172623,5.5,145.27,145.24,3.44591365]
[1727871172828,5.5,145.27,145.25,3.4426]
[1727871173329,5.5,145.27,145.26,3.4426]
[1727871177140,5.5,145.27,145.26,4.0084]
[1727871177637,3.401,145.27,145.26,4.0084]
[1727871177943,0.12502,145.31,145.29,3.4417]
[1727871178442,3.56642,145.31,145.29,3.4417]
[1727871179433,0.12502,145.31,145.29,3.4417]
[1727871179635,0.12502,145.31,145.3,3.4416]
[1727871180135,0.12502,145.31,145.27,26.43]
[1727871180331,0.12502,145.31,145.28,5.78]
[1727871180527,0.12502,145.31,145.26,0.5658]
[1727871180740,3.4423,145.27,145.26,0.5658]
[1727871183940,3.4435,145.23,145.2,9.2239]
[1727871184647,3.4435,145.23,145.2,5.78]
[1727871185045,3.4436,145.22,145.2,5.78]
[1727871185247,3.4436,145.22,145.19,4.84392]
[1727871186745,3.4436,145.22,145.2,3.444]
[1727871188450,2.6727,145.3,145.21,26.43]
[1727871188746,3.442,145.29,145.26,3.4424]
[1727871189335,0.12502,145.31,145.25,3.3918628]
[1727871189540,0.12502,145.31,145.26,26.43]
[1727871189751,0.12502,145.31,145.26,29.87554646]
[1727871189937,3.56652,145.31,145.28,3.442]
[1727871190143,0.12502,145.31,145.26,29.87554646]
[1727871190645,0.12502,145.31,145.3,3.4416]
[1727871191145,1.78502,145.31,145.3,3.4416]
[1727871191340,5.22662,145.31,145.28,9.182]
[1727871191542,1.78502,145.31,145.26,5.74]
[1727871192046,3.4417,145.3,145.27,3.4423]
[1727871192549,3.4421,145.28,145.26,3.4425]
[1727871192751,3.4421,145.28,145.24,35.55885138]
[1727871193046,3.4421,145.28,145.24,32.17]
[1727871193249,3.4421,145.28,145.25,3.4426]
[1727871193746,3.442,145.29,145.26,3.4425]
[1727871194850,3.442,145.29,145.24,32.17]
[1727871194851,1.78502,145.31,145.24,32.17]
[1727871195154,3.4417,145.3,145.27,3.4422]
[1727871195346,1.78502,145.31,145.27,3.4422]
[1727871195651,3.4419,145.29,145.27,3.4422]
[1727871196145,3.4425,145.27,145.23,7.0868]
[1727871196949,3.4425,145.27,145.24,3.443]
[1727871197452,1.78502,145.31,145.25,3.4427]
[1727871197851,1.78502,145.31,145.23,7.0868]
[1727871198548,1.78502,145.31,145.25,26.43]
[1727871198949,1.78502,145.31,145.26,3.4424]
[1727871200052,3.442,145.29,145.26,3.4425]
[1727871200253,3.442,145.29,145.25,26.43]
[1727871200454,3.4418,145.3,145.27,3.4422]
[1727871200850,1.78502,145.31,145.25,26.43]
[1727871201050,1.78502,145.31,145.28,3.442]
[1727871201255,1.78502,145.31,145.27,32.17]
[1727871201953,1.78502,145.31,145.3,3.4416]
[1727871202957,3.4403,145.36,145.33,3.4408]
[1727871204455,3.4403,145.36,145.31,32.17]
[1727871204660,0.12502,145.37,145.31,32.17]
[1727871205055,3.4405,145.35,145.32,3.441]
[1727871205260,0.12502,145.37,145.31,26.43]
[1727871205465,0.12502,145.37,145.29,26.43]
[1727871205761,5.74,145.36,145.27,5.74]
[1727871206061,7.1019,145.36,145.27,5.74]
[1727871206266,3.4414,145.31,145.27,5.74]
[1727871206954,3.4414,145.31,145.28,3.442]
[1727871207153,3.4412,145.32,145.27,5.74]
[1727871207361,3.4412,145.32,145.29,3.4418]
[1727871208163,7.1019,145.36,145.29,3.4418]
[1727871208465,3.4414,145.31,145.29,3.4418]
[1727871212064,3.4419,145.29,145.27,9.1822]
[1727871212259,7.1019,145.36,145.27,5.74]
[1727871213070,3.4415,145.31,145.28,3.4419]
[1727871213472,7.1019,145.36,145.26,32.17]
[1727871213672,23.6319,145.36,145.27,16.53]
[1727871214063,16.53,145.35,145.26,5.74]
[1727871214273,3.4426,145.26,145.25,0.12502]
[1727871217375,16.53,145.29,145.19,2.82532]
[1727871217376,16.53,145.27,145.19,16.65502]
[1727871217573,3.4435,145.22,145.2,3.4439]
[1727871218278,3.4434,145.23,145.2,3.4439]
[1727871218781,1.2815,145.28,145.21,3.4435]
[1727871219080,1.2815,145.28,145.19,26.57502]
[1727871219276,1.2815,145.28,145.21,3.4436]
[1727871219482,1.2815,145.28,145.19,26.57502]
[1727871219981,3.4426,145.26,145.19,26.57502]
[1727871220885,3.4428,145.25,145.22,3.4434]
[1727871221079,1.2815,145.28,145.23,3.48898522]
[1727871221380,1.2815,145.28,145.19,26.57502]
[1727871221583,3.4426,145.26,145.21,3.4436]
[1727871221785,3.4426,145.26,145.19,26.57502]
[1727871222285,3.4426,145.26,145.23,3.4431]
[1727871224783,1.2815,145.28,145.21,3.4437]
[1727871225082,1.2815,145.28,145.19,26.57502]
[1727871225278,1.2815,145.28,145.21,3.4436]
[1727871226288,3.4432,145.24,145.21,3.4436]
[1727871226775,1.2815,145.28,145.22,6.89781612]
[1727871226975,3.4427,145.26,145.22,3.45441612]
[1727871227180,3.4427,145.26,145.19,26.57502]
[1727871227488,1.2815,145.28,145.19,0.12502]
[1727871227882,1.2815,145.28,145.22,3.4434]
[1727871228179,1.2815,145.28,145.22,6.92639917]
[1727871228486,27.7315,145.28,145.19,0.12502]
[1727871228885,3.444,145.2,145.19,0.12502]
[1727871229985,26.45,145.21,145.13,0.12502]
[1727871230985,3.445,145.16,145.13,3.57052]
[1727871231186,26.45,145.21,145.13,0.12502]
[1727871231585,3.4453,145.15,145.13,0.12502]
[1727871232884,3.445,145.16,145.13,3.57062]
[1727871233085,26.45,145.21,145.13,0.12502]
[1727871234087,3.4443,145.19,145.13,26.57502]
[1727871234884,3.4442,145.2,145.17,3.4446]
[1727871235084,4.0519,145.22,145.13,26.57502]
[1727871235285,3.4442,145.2,145.13,26.57502]
[1727871235487,4.0519,145.22,145.16,3.4448]
[1727871235989,3.4443,145.19,145.16,3.4448]
[1727871236189,4.0519,145.22,145.17,3.4446]
[1727871236390,4.0519,145.22,145.13,26.57502]
[1727871236891,0.12502,145.25,145.13,26.57502]
[1727871237193,0.12502,145.25,145.15,26.45]
[1727871237384,3.4441,145.2,145.17,3.4446]
[1727871238094,3.4442,145.19,145.17,3.4446]
[1727871238292,0.12502,145.25,145.17,3.4446]
[1727871238994,3.4441,145.2,145.17,3.4446]
[1727871240396,3.4443,145.19,145.16,3.4448]
[1727871240595,16.54,145.22,145.14,1.2679]
[1727871240995,16.54,145.22,145.16,3.4449]
[1727871240996,3.4444,145.19,145.16,3.4449]
[1727871241191,16.54,145.22,145.13,0.12502]
[1727871241395,17.8932,145.22,145.13,0.12502]
[1727871242096,3.4449,145.17,145.14,3.4454]
[1727871243896,16.54,145.2,145.13,0.12502]
[1727871244388,3.4454,145.14,145.13,0.12502]
[1727871248096,3.4454,145.14,145.07,0.12502]
[1727871248097,3.4468,145.08,145.07,0.12502]
[1727871249804,3.4481,145.03,145.01,0.12502]
[1727871250095,26.47,145.08,145.01,0.12502]
[1727871250497,3.4483,145.02,145.01,0.12502]
[1727871256108,3.42217516,145.03,144.95,0.12502]
[1727871256305,26.47,145.04,144.95,3.57482]
[1727871256906,26.47,144.97,144.83,0.12502]
[1727871257112,26.47,144.92,144.83,0.12502]
[1727871257308,3.4514,144.89,144.83,3.49133135]
[1727871257506,26.47,144.92,144.85,3.4523]
[1727871258002,26.47,144.92,144.83,3.59872302]
[1727871258201,26.47,144.92,144.83,3.57782]
[1727871258414,26.47,144.92,144.83,0.12502]
[1727871258608,26.47,144.9,144.83,0.12502]
[1727871258799,29.9388698,144.9,144.83,0.12502]
[1727871260311,26.47,144.87,144.83,0.12502]
[1727871260812,1.2754,144.86,144.83,0.12502]
[1727871261007,3.4523,144.85,144.83,0.12502]
[1727871261208,1.2754,144.86,144.77,0.12502]
[1727871261507,1.2754,144.86,144.79,3.4537]
[1727871261508,3.4528,144.83,144.79,3.4537]
[1727871261703,3.4528,144.83,144.77,0.12502]
[1727871261905,26.47,144.84,144.77,0.12502]
[1727871262410,1.3887,144.85,144.77,0.12502]
[1727871262616,4.8412,144.85,144.77,0.12502]
[1727871262801,26.47,144.87,144.77,0.12502]
[1727871263003,26.59502,144.89,144.77,0.12502]
[1727871263604,3.4521,144.86,144.82,3.4529]
[1727871263805,26.47,144.84,144.77,0.12502]
[1727871264212,3.4538,144.79,144.77,0.12502]
[1727871264409,26.47,144.82,144.77,0.12502]
[1727871264607,1.3648,144.83,144.77,0.12502]
[1727871264808,3.4538,144.79,144.77,0.12502]
[1727871265410,26.47,144.82,144.77,0.12502]
[1727871265611,1.3648,144.83,144.77,0.12502]
[1727871265911,3.4535,144.81,144.77,3.57912]
[1727871266115,1.3648,144.83,144.77,3.57912]
[1727871267316,1.3648,144.83,144.77,0.12502]
[1727871267516,27.8348,144.83,144.77,0.12502]
[1727871267716,1.3648,144.83,144.77,0.12502]
[1727871268028,3.4537,144.8,144.77,0.12502]
[1727871268314,26.47,144.82,144.77,0.12502]
[1727871268709,6.9012,144.93,144.77,0.12502]
[1727871268917,2.6506,144.88,144.77,0.12502]
[1727871269218,2.6506,144.88,144.77,26.59502]
[1727871269404,2.6506,144.88,144.78,1.3801]
[1727871270015,26.47,144.86,144.78,1.3801]
[1727871270815,3.4531,144.82,144.79,3.4536]
[1727871271012,3.4531,144.82,144.78,1.3801]
[1727871271417,3.4526,144.84,144.8,3.4534]
[1727871271921,3.4525,144.85,144.8,3.4534]
[1727871272118,26.47,144.86,144.8,3.4534]
[1727871272416,3.453,144.83,144.79,3.4536]
[1727871273311,3.4527,144.84,144.8,3.4534]
[1727871273713,2.6506,144.88,144.78,1.3801]
[1727871273909,26.47,144.86,144.79,1.3157]
[1727871274521,3.453,144.83,144.79,4.7694]
[1727871274723,3.453,144.83,144.79,1.3157]
[1727871274922,3.4526,144.84,144.81,3.4531]
[1727871275123,26.47,144.86,144.79,1.3157]
[1727871275625,3.4529,144.83,144.79,1.3157]
[1727871275828,26.47,144.86,144.79,1.3157]
[1727871276123,3.4532,144.82,144.79,3.4537]
[1727871277426,26.47,144.86,144.78,1.3801]
[1727871278025,3.4528,144.83,144.8,3.4533]
[1727871278421,26.47,144.86,144.78,1.3801]
[1727871278734,29.1206,144.88,144.78,1.3801]
[1727871279019,3.4525,144.85,144.81,3.4533]
[1727871279418,29.1206,144.88,144.81,3.4533]
[1727871279924,3.4525,144.85,144.81,3.4533]
[1727871280117,3.4525,144.85,144.82,3.453]
[1727871280322,29.1206,144.88,144.78,27.8501]
[1727871280528,3.4523,144.85,144.78,27.8501]
[1727871280741,3.4523,144.85,144.82,3.4529]
[1727871280919,3.4523,144.85,144.78,27.8501]
[1727871281330,0.12502,144.89,144.78,27.8501]
[1727871281925,3.57642,144.89,144.86,3.4519]
[1727871282124,3.57642,144.89,144.8,26.47]
[1727871282125,0.12502,144.89,144.84,3.50124775]
[1727871282329,0.12502,144.89,144.81,1.2756]
[1727871282634,3.4517,144.88,144.85,3.4522]
[1727871283426,3.57642,144.89,144.86,3.452]
[1727871284136,3.57642,144.89,144.83,3.49292778]
[1727871284137,0.12502,144.89,144.83,3.49292778]
[1727871284324,0.12502,144.89,144.82,1.3915]
[1727871284525,0.12502,144.89,144.83,26.47]
[1727871284723,0.12502,144.89,144.88,3.4516]
[1727871285623,0.12502,144.95,144.85,26.47]
[1727871286032,3.4503,144.94,144.85,26.47]
[1727871286227,0.12502,144.95,144.88,3.4516]
[1727871286633,0.12502,144.95,144.85,26.47]
[1727871287231,3.4505,144.93,144.9,3.4511]
[1727871288235,3.4507,144.92,144.89,3.4513]
[1727871288428,0.12502,144.95,144.85,26.47]
[1727871288732,0.12502,144.95,144.91,26.47]
[1727871288938,0.12502,144.95,144.94,3.4502]
[1727871289828,0.12502,144.95,144.92,2.6434]
[1727871290023,0.12502,144.95,144.86,26.47]
[1727871290226,3.4508,144.92,144.86,1.2838]
[1727871290425,0.12502,144.95,144.89,3.4512]
[1727871290629,0.12502,144.95,144.86,1.2838]
[1727871290835,3.4506,144.93,144.86,1.2838]
[1727871291039,0.12502,144.95,144.88,3.4515]
[1727871291530,0.12502,144.95,144.86,1.2838]
[1727871291735,0.12502,144.95,144.89,3.4513]
[1727871291940,3.4505,144.93,144.89,3.4513]
[1727871292141,0.12502,144.95,144.89,3.4513]
[1727871292639,0.12502,144.95,144.86,1.2838]
[1727871293732,26.47,144.93,144.83,0.12502]
[1727871293930,26.47,144.93,144.87,3.4518]
[1727871294231,0.12502,144.95,144.87,3.4518]
[1727871294625,0.12502,144.95,144.88,3.4515]
[1727871294836,3.4508,144.92,144.88,3.4515]
[1727871295734,3.4502,144.94,144.9,3.4509]
[1727871296330,0.12502,144.95,144.86,3.49068719]
[1727871296530,0.12502,144.95,144.88,3.4515]
[1727871297026,0.12502,144.95,144.84,33.76434337]
[1727871297431,3.4504,144.94,144.84,33.76434337]
[1727871297627,0.12502,144.95,144.86,26.47]
[1727871297832,0.12502,144.95,144.93,3.4503]
[1727871298740,0.12502,144.95,144.9,3.4511]
[1727871298947,3.4503,144.94,144.86,26.47]
[1727871299236,0.12502,144.95,144.86,26.47]
[1727871299830,0.12502,144.95,144.92,3.4505]
[1727871300239,0.12502,144.95,144.94,3.4502]
[1727871300537,0.12502,144.95,144.94,6.89060915]
[1727871300742,0.12502,144.95,144.92,2.6743]
[1727871301040,0.12502,144.95,144.86,26.47]
[1727871301828,3.4502,144.94,144.91,3.4508]
[1727871302034,0.12502,144.95,144.92,3.52599661]
[1727871302337,9.0,145.0,144.99,3.449]
[1727871302541,9.0,145.0,144.97,3.3810501]
[1727871302842,9.0,145.0,144.95,1.3215]
[1727871303037,9.0,145.0,144.95,2.6765]
[1727871303335,12.4489,145.0,144.92,26.47]